bitfinex/quotes_BTCUSD_20251016
["timestamp","ask_amount","ask_price","bid_price","bid_amount"]
[1760649509186,0.62223499,108340.0,108330.0,0.00021912]
[1760649512481,0.59736388,108340.0,108330.0,0.00021912]
[1760649515309,0.70900547,108340.0,108330.0,0.00021912]
[1760649515534,0.69153896,108340.0,108330.0,0.00021912]
[1760649515750,0.65841727,108340.0,108330.0,0.00021912]
[1760649516360,0.69153896,108340.0,108330.0,0.00021912]
[1760649516875,0.62223499,108340.0,108330.0,0.00021912]
[1760649517731,0.69898152,108340.0,108330.0,0.00021912]
[1760649518105,0.62223499,108340.0,108330.0,0.00021912]
[1760649519743,0.65535668,108340.0,108330.0,0.00021912]
[1760649520194,0.62223499,108340.0,108330.0,0.00021912]
[1760649520612,0.65535668,108340.0,108330.0,0.00021912]
[1760649521068,0.68311812,108340.0,108330.0,0.00021912]
[1760649521523,0.7728002,108340.0,108330.0,0.00021912]
[1760649522165,0.74792909,108340.0,108330.0,0.00021912]
[1760649526129,0.78411137,108340.0,108330.0,0.00021912]
[1760649526346,0.83385924,108340.0,108330.0,0.00021912]
[1760649528385,0.1846381,108320.0,108310.0,4e-05]
[1760649528538,0.31911977,108320.0,108310.0,0.00054221]
[1760649529163,0.34688686,108320.0,108310.0,0.00054221]
[1760649529562,0.34,108290.0,108280.0,0.18470631]
[1760649529765,0.34,108290.0,108280.0,0.18485701]
[1760649530744,0.53183205,108310.0,108290.0,0.18467721]
[1760649531136,0.34,108310.0,108300.0,0.1846722]
[1760649531350,0.52465515,108310.0,108300.0,0.1846722]
[1760649532501,0.52465515,108310.0,108300.0,0.1856722]
[1760649533122,0.52465515,108310.0,108300.0,0.001]
[1760649533323,0.52465515,108310.0,108300.0,0.1856722]
[1760649534401,0.52441055,108310.0,108300.0,0.1856722]
[1760649538137,0.3397554,108310.0,108300.0,0.1856722]
[1760649539591,0.5319513,108320.0,108310.0,0.18465515]
[1760649540838,0.5246381,108320.0,108310.0,0.18465515]
[1760649541460,0.5246381,108320.0,108310.0,0.18565515]
[1760649542496,0.5246381,108320.0,108310.0,0.18569515]
[1760649542905,0.5246381,108320.0,108310.0,0.00104]
[1760649543118,0.5246381,108320.0,108310.0,0.18569515]
[1760649543547,0.5196381,108320.0,108310.0,0.18569515]
[1760649544411,0.5196381,108320.0,108310.0,0.00104]
[1760649546171,0.53957922,108320.0,108310.0,0.00104]
[1760649546504,0.5196381,108320.0,108310.0,0.00104]
[1760649546713,0.62926954,108320.0,108310.0,0.00104]
[1760649547131,0.63777023,108320.0,108310.0,0.00104]
[1760649548213,0.54808011,108320.0,108310.0,0.18569515]
[1760649548420,0.54808011,108320.0,108310.0,0.00104]
[1760649548646,0.54808011,108320.0,108310.0,0.18569515]
[1760649549048,0.54808011,108320.0,108310.0,0.00104]
[1760649549262,0.54808215,108320.0,108310.0,0.00104]
[1760649550727,0.54808215,108320.0,108310.0,0.18569515]
[1760649552232,0.54808215,108320.0,108310.0,0.00104]
[1760649554037,0.19313879,108320.0,108310.0,0.00104]
[1760649554474,0.19313879,108320.0,108310.0,0.18569515]
[1760649555583,0.00850069,108320.0,108310.0,0.18569515]
[1760649555807,0.19313879,108320.0,108310.0,0.18569515]
[1760649556738,0.19313879,108320.0,108310.0,0.00104]
[1760649560464,0.21308616,108320.0,108310.0,0.00104]
[1760649563359,0.21308616,108320.0,108310.0,0.18569515]
[1760649563563,0.21308616,108320.0,108310.0,0.00104]
[1760649563786,0.19313879,108320.0,108310.0,0.00104]
[1760649564002,0.21308616,108320.0,108310.0,0.00104]
[1760649564206,0.25451236,108320.0,108310.0,0.00104]
[1760649564633,0.21308616,108320.0,108310.0,0.00104]
[1760649568791,0.32769853,108320.0,108310.0,0.00104]
[1760649569291,0.30277628,108320.0,108310.0,0.00104]
[1760649569735,0.33054206,108320.0,108310.0,0.00104]
[1760649573381,0.29484822,108320.0,108310.0,0.00104]
[1760649579147,0.21240388,108320.0,108310.0,0.00104]
[1760649580403,0.21240388,108320.0,108310.0,0.18569515]
[1760649581434,0.02776578,108320.0,108310.0,0.18569515]
[1760649581646,0.27432822,108320.0,108310.0,0.00104]
[1760649581876,0.30209387,108320.0,108310.0,0.00104]
[1760649583540,0.25209387,108320.0,108310.0,0.00104]
[1760649585429,0.27205182,108320.0,108310.0,0.00104]
[1760649597157,0.22205182,108320.0,108310.0,0.00104]
[1760649598003,0.56205182,108320.0,108310.0,0.00104]
[1760649600985,0.68791618,108320.0,108310.0,0.00104]
[1760649601195,0.62315635,108320.0,108310.0,0.00104]
[1760649601414,0.18468926,108290.0,108280.0,0.0001507]
[1760649601618,0.01995795,108290.0,108280.0,0.0001507]
[1760649601849,0.18468926,108290.0,108280.0,0.0001507]
[1760649602075,0.21246039,108290.0,108280.0,0.0001507]
[1760649602289,0.30215051,108290.0,108280.0,0.0001507]
[1760649602710,0.32210846,108290.0,108280.0,0.0011507]
[1760649603405,0.32210846,108290.0,108280.0,0.0001507]
[1760649604231,0.30215051,108290.0,108280.0,0.0001507]
[1760649604668,0.78296976,108290.0,108280.0,0.0001507]
[1760649605095,0.18474043,108260.0,108250.0,0.19399368]
[1760649605300,0.18474043,108260.0,108250.0,0.19414432]
[1760649605716,0.21250113,108270.0,108260.0,0.18474043]
[1760649605952,0.30219125,108270.0,108260.0,0.18474043]
[1760649606773,0.30983343,108270.0,108260.0,0.18474043]
[1760649607187,0.30983343,108270.0,108250.0,0.19414432]
[1760649607803,0.30983343,108270.0,108260.0,0.18474043]
[1760649608007,0.30983343,108270.0,108250.0,0.19414432]
[1760649609136,0.18474043,108260.0,108250.0,0.19414432]
[1760649609269,0.18474043,108260.0,108250.0,0.00015064]
[1760649609497,0.18474043,108260.0,108250.0,0.18490814]
[1760649609704,0.18474043,108260.0,108250.0,0.00015064]
[1760649610303,0.27443055,108260.0,108250.0,0.00015064]
[1760649612258,0.32309929,108260.0,108250.0,0.00015064]
[1760649612457,0.35088201,108260.0,108250.0,0.00015064]
[1760649612841,0.30221327,108260.0,108250.0,0.00015064]
[1760649620888,0.64221327,108260.0,108250.0,0.00015064]
[1760649621119,0.66208961,108260.0,108250.0,0.00015064]
[1760649621301,0.69827189,108260.0,108250.0,0.00015064]
[1760649623226,0.72322067,108260.0,108250.0,0.00015064]
[1760649623475,0.72422067,108260.0,108250.0,0.00015064]
[1760649623906,0.75745034,108260.0,108250.0,0.00015064]
[1760649624321,0.78224943,108260.0,108250.0,0.00015064]
[1760649624792,0.18479164,108230.0,108220.0,0.00044]
[1760649624993,0.27453186,108230.0,108220.0,0.00044]
[1760649625532,0.64232267,108230.0,108220.0,0.00044]
[1760649625734,0.66219901,108230.0,108220.0,0.00044]
[1760649627128,0.78806337,108230.0,108220.0,0.00044]
[1760649627388,0.81288862,108230.0,108220.0,0.00044]
[1760649627591,0.72320654,108230.0,108220.0,0.00044]
[1760649629557,0.54585592,108230.0,108220.0,0.00044]
[1760649629779,0.69754723,108230.0,108220.0,0.00044]
[1760649630228,0.70582231,108230.0,108220.0,0.00044]
[1760649630447,0.82033781,108230.0,108220.0,0.00044]
[1760649630880,0.79550439,108230.0,108220.0,0.00044]
[1760649631106,0.70582231,108230.0,108220.0,0.00044]
[1760649631330,0.94982231,108230.0,108220.0,0.00044]
[1760649632376,0.18485773,108200.0,108180.0,0.19411433]
[1760649632592,0.29442419,108200.0,108180.0,0.19411433]
[1760649633137,0.29442419,108200.0,108190.0,0.18485996]
[1760649636535,0.29442419,108200.0,108180.0,0.19411433]
[1760649636757,0.01987634,108200.0,108190.0,0.18485996]
[1760649636962,0.18482887,108210.0,108200.0,0.18484288]
[1760649637174,0.20468689,108210.0,108200.0,0.18484288]
[1760649637608,0.01986109,108210.0,108200.0,0.18484288]
[1760649637815,0.20468689,108210.0,108200.0,0.18484288]
[1760649638238,0.19409727,108220.0,108200.0,0.18484288]
[1760649638481,0.83070649,108230.0,108220.0,0.18480872]
[1760649638482,0.05267527,108230.0,108220.0,0.18480872]
[1760649638698,5.01e-05,108230.0,108220.0,0.18480872]
[1760649642374,5.01e-05,108230.0,108220.0,0.36769884]
[1760649642629,5.01e-05,108230.0,108220.0,0.27800872]
[1760649643075,5.01e-05,108230.0,108220.0,0.18480872]
[1760649643504,5.01e-05,108230.0,108220.0,0.17879362]
[1760649645625,5.01e-05,108230.0,108220.0,0.19727449]
[1760649646241,5.01e-05,108230.0,108220.0,0.28696461]
[1760649646471,5.01e-05,108230.0,108220.0,0.26848374]
[1760649646906,5.01e-05,108230.0,108220.0,5.26848374]
[1760649648841,5.01e-05,108230.0,108220.0,0.26848374]
[1760649649082,5.01e-05,108230.0,108220.0,0.36164374]
[1760649662423,9.473e-05,108230.0,108220.0,0.36164374]
[1760649663569,5.01e-05,108230.0,108220.0,0.36159911]
[1760649664218,5.01e-05,108230.0,108220.0,1.24190633]
[1760649667209,5.01e-05,108230.0,108220.0,1.14874633]
[1760649667436,5.01e-05,108230.0,108220.0,1.24190633]
[1760649669513,0.18484174,108230.0,108220.0,0.18480872]
[1760649669758,0.18484174,108230.0,108220.0,0.27796872]
[1760649672277,0.18484174,108230.0,108220.0,0.18480872]
[1760649672473,0.18484174,108230.0,108220.0,0.27796872]
[1760649672695,0.18480872,108220.0,108210.0,0.1848258]
[1760649672904,0.18480872,108220.0,108210.0,0.27451592]
[1760649673124,0.18480872,108220.0,108210.0,0.36767592]
[1760649673664,0.18480872,108220.0,108210.0,0.1848258]
[1760649673871,0.18480872,108220.0,108200.0,0.63423808]
[1760649673872,0.1848258,108210.0,108190.0,0.63425656]
[1760649674082,0.1848258,108210.0,108200.0,0.27800288]
[1760649674484,0.18484288,108200.0,108190.0,0.28379307]
[1760649674689,0.15707816,108200.0,108190.0,0.28726295]
[1760649675020,0.15707816,108200.0,108190.0,0.19410295]
[1760649675225,0.15707816,108200.0,108190.0,0.28726295]
[1760649675630,0.15707816,108200.0,108190.0,0.19410295]
[1760649675829,0.15707816,108200.0,108190.0,0.28726295]
[1760649676275,0.15707816,108200.0,108190.0,0.19414295]
[1760649676431,0.15707816,108200.0,108190.0,0.28730295]
[1760649676699,0.15707816,108200.0,108190.0,0.0932]
[1760649676863,0.15707816,108200.0,108190.0,0.0942]
[1760649677066,0.15707816,108200.0,108190.0,0.27805996]
[1760649677571,0.15707816,108200.0,108190.0,0.18489996]
[1760649678924,1.03738538,108200.0,108190.0,4e-05]
[1760649679119,0.18487104,108190.0,108170.0,0.19413112]
[1760649679348,0.62502465,108190.0,108170.0,0.28729112]
[1760649679524,0.18487705,108180.0,108170.0,0.19413112]
[1760649679752,0.18487705,108180.0,108170.0,0.28729112]
[1760649679952,0.62502465,108190.0,108170.0,0.28729112]
[1760649680366,0.62503066,108180.0,108170.0,0.0005028]
[1760649680803,0.18487705,108180.0,108170.0,0.18539694]
[1760649681429,0.62503066,108180.0,108170.0,0.18539694]
[1760649681636,0.63426764,108190.0,108170.0,0.18543694]
[1760649681848,0.1663203,108200.0,108170.0,0.62559055]
[1760649682084,0.18485996,108190.0,108180.0,0.18487705]
[1760649682296,0.1663203,108200.0,108180.0,0.18487705]
[1760649682508,0.44015361,108200.0,108190.0,0.18485996]
[1760649682720,0.62499649,108200.0,108180.0,0.2872809]
[1760649682927,0.62499649,108200.0,108190.0,0.18485996]
[1760649683557,0.62499649,108200.0,108180.0,0.2872809]
[1760649684202,0.18485996,108190.0,108180.0,0.18487705]
[1760649684430,0.62501357,108190.0,108180.0,0.18487705]
[1760649685010,0.18485996,108190.0,108180.0,0.18487705]
[1760649685228,0.18485996,108190.0,108170.0,0.28784164]
[1760649685392,0.62501357,108190.0,108180.0,0.18487705]
[1760649685587,0.18485996,108190.0,108180.0,0.18487705]
[1760649685809,0.18487705,108180.0,108170.0,0.18543548]
[1760649686217,0.18487705,108180.0,108170.0,0.0005428]
[1760649686413,0.62503066,108180.0,108170.0,0.0005428]
[1760649687347,1.23586345,108180.0,108170.0,0.0005428]
[1760649687557,1.15487439,108180.0,108170.0,0.0005428]
[1760649689296,1.49487439,108180.0,108170.0,0.0005428]
[1760649689520,1.99106475,108180.0,108170.0,0.0005428]
[1760649690161,1.55091114,108180.0,108170.0,0.0005428]
[1760649690787,1.55191114,108180.0,108170.0,0.0005428]
[1760649691477,0.761286,108180.0,108170.0,0.0005428]
[1760649691705,2.10657895,108180.0,108170.0,0.0005428]
[1760649693230,2.10657895,108180.0,108170.0,1e-08]
[1760649693231,2.57983289,108180.0,108170.0,1e-08]
[1760649693446,3.48505586,108180.0,108170.0,1e-08]
[1760649693659,3.45195553,108180.0,108170.0,1e-08]
[1760649694286,0.18489414,108170.0,108160.0,0.0004]
[1760649694524,1.73763217,108170.0,108160.0,0.00055078]
[1760649695170,1.78738004,108170.0,108160.0,0.00055078]
[1760649695619,1.50352671,108170.0,108160.0,0.00055078]
[1760649695854,1.50452671,108170.0,108160.0,0.00055078]
[1760649696081,1.68942085,108170.0,108160.0,0.00055078]
[1760649696297,1.75865366,108170.0,108160.0,0.00055078]
[1760649697663,1.76236182,108170.0,108160.0,0.00055078]
[1760649698134,1.73757987,108170.0,108160.0,0.00059078]
[1760649699394,1.29742626,108170.0,108160.0,0.00059078]
[1760649699600,1.32220819,108170.0,108160.0,0.00059078]
[1760649699811,1.28602591,108170.0,108160.0,0.00059078]
[1760649700246,1.19263567,108170.0,108160.0,0.00059078]
[1760649700681,1.22881795,108170.0,108160.0,0.00059078]
[1760649701305,1.20403602,108170.0,108160.0,0.00059078]
[1760649701530,0.76474961,108170.0,108160.0,0.00059078]
[1760649701946,0.76474961,108170.0,108160.0,0.00034705]
[1760649702178,0.83049318,108170.0,108160.0,0.00034705]
[1760649702606,0.3237288,108170.0,108160.0,0.00034705]
[1760649702811,0.76474961,108170.0,108160.0,0.00034705]
[1760649703466,0.72032732,108170.0,108160.0,0.00034705]
[1760649703718,1.0355168,108170.0,108160.0,0.00034705]
[1760649703967,1.2795168,108170.0,108160.0,0.00034705]
[1760649704694,1.2785168,108170.0,108160.0,0.00034705]
[1760649704894,1.2795168,108170.0,108160.0,0.00034705]
[1760649705369,1.30432732,108170.0,108160.0,0.00034705]
[1760649705741,1.33737785,108170.0,108160.0,0.00034705]
[1760649706107,1.28863047,108170.0,108160.0,0.00034705]
[1760649706521,1.25557994,108170.0,108160.0,0.18525829]
[1760649706729,1.25557994,108170.0,108160.0,0.00034705]
[1760649707148,1.25457994,108170.0,108160.0,0.00034705]
[1760649707362,1.28763047,108170.0,108160.0,0.00034705]
[1760649709167,1.26281995,108170.0,108160.0,0.00034705]
[1760649710622,1.31256782,108170.0,108160.0,0.00034705]
[1760649711874,1.40225794,108170.0,108160.0,0.00034705]
[1760649712067,1.36920741,108170.0,108160.0,0.00034705]
[1760649713111,1.40237299,108170.0,108160.0,0.00034705]
[1760649713401,1.36920741,108170.0,108160.0,0.00034705]
[1760649713822,1.12520741,108170.0,108160.0,0.00034705]
[1760649714393,0.18491124,108160.0,108150.0,0.0004]
[1760649714606,0.67898347,108160.0,108150.0,0.0005509]
[1760649714808,0.67898347,108160.0,108150.0,0.18547924]
[1760649715190,0.72873134,108160.0,108150.0,0.18547924]
[1760649715524,0.23796266,108160.0,108150.0,0.18547924]
[1760649715868,0.23796266,108160.0,108150.0,0.0005509]
[1760649716080,0.28771053,108160.0,108150.0,0.0005509]
[1760649718422,0.72873134,108160.0,108150.0,0.0005509]
[1760649718658,0.28771053,108160.0,108150.0,0.18547924]
[1760649718838,0.72873134,108160.0,108150.0,0.18547924]
[1760649719034,0.72873134,108160.0,108150.0,0.0005509]
[1760649721950,0.72873134,108160.0,108150.0,0.734683]
[1760649721951,0.07799469,108160.0,108150.0,0.734683]
[1760649722162,0.07799469,108160.0,108150.0,0.36836936]
[1760649722163,0.04479774,108160.0,108150.0,0.36836936]
[1760649722623,0.01985447,108160.0,108150.0,0.36836936]
[1760649723447,0.21809284,108170.0,108160.0,0.18491124]
[1760649723619,0.26297237,108170.0,108160.0,0.18491124]
[1760649724034,0.07807648,108170.0,108160.0,0.18491124]
[1760649724235,0.04487953,108170.0,108160.0,0.18491124]
[1760649725230,0.01994646,108170.0,108160.0,0.18491124]
[1760649725632,0.01994646,108170.0,108160.0,0.71562217]
[1760649726120,0.01994646,108170.0,108160.0,0.27460136]
[1760649728389,0.71166256,108190.0,108170.0,0.18488109]
[1760649728594,0.7315999,108190.0,108170.0,0.18488109]
[1760649728832,0.71320317,108190.0,108170.0,0.18488109]
[1760649729248,0.18487705,108180.0,108170.0,0.18488109]
[1760649729457,0.20481439,108180.0,108170.0,0.18488109]
[1760649730118,0.01993734,108180.0,108170.0,0.18488109]
[1760649730323,0.20481439,108180.0,108170.0,0.18488109]
[1760649730971,0.01993734,108180.0,108170.0,0.18488109]
[1760649731150,0.20481439,108180.0,108170.0,0.18488109]
[1760649732033,0.01993734,108180.0,108170.0,0.18489414]
[1760649732246,0.20481439,108180.0,108160.0,0.28384692]
[1760649732461,0.18489414,108170.0,108150.0,0.18547514]
[1760649732671,0.18491124,108160.0,108150.0,0.18547514]
[1760649733104,0.62593205,108160.0,108150.0,0.0005509]
[1760649733311,0.64587421,108160.0,108150.0,0.0005509]
[1760649733534,0.64587421,108160.0,108150.0,0.18547924]
[1760649733763,0.2048534,108160.0,108150.0,0.18547924]
[1760649734804,0.18491124,108160.0,108150.0,0.18547924]
[1760649735035,0.69327173,108180.0,108150.0,0.18547924]
[1760649735242,0.18491124,108160.0,108150.0,0.18547924]
[1760649735430,0.62591495,108170.0,108150.0,0.18547924]
[1760649735672,0.64586138,108170.0,108160.0,0.18491124]
[1760649735886,0.18491124,108160.0,108150.0,0.18547924]
[1760649736125,0.62591495,108170.0,108150.0,0.18547924]
[1760649736341,0.64586196,108170.0,108160.0,0.18491124]
[1760649736553,0.01994701,108170.0,108160.0,0.18491124]
[1760649736761,0.20484115,108170.0,108160.0,0.18491124]
[1760649737448,0.01994701,108170.0,108160.0,0.18491124]
[1760649737674,0.20482246,108180.0,108170.0,0.18487989]
[1760649738087,0.20482246,108180.0,108160.0,0.2873568]
[1760649738513,0.20482246,108180.0,108170.0,0.18489414]
[1760649739999,0.01994541,108180.0,108170.0,0.18489414]
[1760649740622,0.20482246,108180.0,108170.0,0.18489414]
[1760649740828,0.01994541,108180.0,108170.0,0.18489414]
[1760649741048,0.20482246,108180.0,108170.0,0.18489414]
[1760649741446,0.20482246,108180.0,108160.0,0.1941568]
[1760649742329,0.2195127,108180.0,108170.0,0.18489414]
[1760649742776,0.01469024,108180.0,108170.0,0.18489414]
[1760649743197,0.19956729,108180.0,108170.0,0.18489414]
[1760649745801,0.01469024,108180.0,108170.0,0.18489414]
[1760649745982,0.19956729,108180.0,108170.0,0.18489414]
[1760649746430,0.01469024,108180.0,108170.0,0.18489414]
[1760649746584,0.19956729,108180.0,108170.0,0.18489414]
[1760649747831,0.01469024,108180.0,108170.0,0.18489414]
[1760649748307,0.19956729,108180.0,108170.0,0.18489414]
[1760649748685,0.01469024,108180.0,108170.0,0.18489414]
[1760649749929,0.19956729,108180.0,108170.0,0.18489414]
[1760649750081,0.01469024,108180.0,108170.0,0.18489414]
[1760649750491,0.01469024,108180.0,108170.0,0.80880507]
[1760649750700,0.01469024,108180.0,108170.0,1.14880507]
[1760649751580,0.01469024,108180.0,108170.0,1.15697246]
[1760649752007,0.01469024,108180.0,108170.0,6.15697246]
[1760649753222,0.01469024,108180.0,108170.0,6.15797246]
[1760649755085,0.01469024,108180.0,108170.0,6.19415474]
[1760649755454,0.01469024,108180.0,108170.0,6.22294339]
[1760649756490,0.01469024,108180.0,108170.0,6.19415474]
[1760649758774,0.01469024,108180.0,108170.0,6.10095474]
[1760649758988,0.01469024,108180.0,108170.0,6.19411474]
[1760649759423,0.01469024,108180.0,108170.0,6.06477246]
[1760649759607,0.01469024,108180.0,108170.0,1.15793246]
[1760649760526,0.01469024,108180.0,108170.0,6.15793246]
[1760649763456,0.01469024,108180.0,108170.0,6.15743625]
[1760649764761,0.01469024,108180.0,108170.0,6.59796085]
[1760649765797,0.01469024,108180.0,108170.0,6.63414313]
[1760649768554,0.01469024,108180.0,108170.0,6.63418313]
[1760649769812,0.01839673,108210.0,108200.0,0.18483622]
[1760649770019,0.20322341,108210.0,108200.0,0.18483622]
[1760649770173,0.18482668,108210.0,108200.0,0.18483622]
[1760649770891,0.18532793,108210.0,108200.0,0.18483622]
[1760649772413,0.18532793,108210.0,108200.0,0.18487622]
[1760649773493,0.62585253,108210.0,108200.0,0.18487622]
[1760649775945,0.42168258,108210.0,108200.0,0.18487622]
[1760649776157,0.60650926,108210.0,108200.0,0.18487622]
[1760649776500,0.42168258,108210.0,108200.0,0.18487622]
[1760649777320,0.66335134,108220.0,108200.0,0.18487622]
[1760649777522,0.68329875,108220.0,108200.0,0.18487622]
[1760649777727,0.1848258,108210.0,108200.0,0.18487622]
[1760649779440,0.20478852,108210.0,108200.0,0.18487622]
[1760649780904,0.01996272,108210.0,108200.0,0.18487622]
[1760649781322,0.85194432,108220.0,108210.0,0.1848258]
[1760649782146,0.86118475,108220.0,108210.0,0.1848258]
[1760649782561,0.34813196,108220.0,108210.0,0.1848258]
[1760649782768,0.97346528,108220.0,108210.0,0.1848258]
[1760649782977,0.97346528,108220.0,108200.0,0.62540082]
[1760649783205,0.97346528,108220.0,108210.0,0.1848258]
[1760649783433,0.97446528,108220.0,108210.0,0.1848258]
[1760649783642,0.97346528,108220.0,108210.0,0.1848258]
[1760649783859,0.1848258,108210.0,108200.0,0.18488288]
[1760649784072,0.6253504,108210.0,108200.0,0.18488288]
[1760649789373,0.97346528,108220.0,108200.0,0.18488288]
[1760649789592,0.53294068,108220.0,108210.0,0.1848258]
[1760649789805,0.97346528,108220.0,108210.0,0.1848258]
[1760649790019,0.78865656,108220.0,108210.0,0.1848258]
[1760649790242,0.00813196,108220.0,108210.0,0.1848258]
[1760649790702,0.66242885,108230.0,108210.0,0.1848258]
[1760649790915,0.4405246,108220.0,108210.0,0.1848258]
[1760649791141,0.62533332,108220.0,108210.0,0.1848258]
[1760649792645,0.4405246,108220.0,108210.0,0.1848258]
[1760649793063,0.62533332,108220.0,108210.0,0.1848658]
[1760649793324,0.64530723,108220.0,108210.0,0.1838658]
[1760649793527,0.46893717,108220.0,108210.0,0.1838658]
[1760649793979,0.21322129,108220.0,108210.0,0.1838658]
[1760649794455,0.62533332,108220.0,108210.0,0.1838658]
[1760649795332,0.21834343,108230.0,108210.0,0.1838658]
[1760649795560,0.66730995,108230.0,108210.0,0.1838658]
[1760649795796,0.18480872,108220.0,108210.0,0.1838658]
[1760649796230,0.66730995,108230.0,108210.0,0.1838658]
[1760649796439,0.42890278,108230.0,108210.0,0.1838658]
[1760649796875,0.61370996,108230.0,108210.0,0.1838658]
[1760649797120,0.6313923,108230.0,108210.0,0.1838658]
[1760649797331,0.18480872,108220.0,108210.0,0.1838658]
[1760649797752,0.62533332,108220.0,108210.0,0.1838658]
[1760649798198,0.4405246,108220.0,108210.0,0.1838658]
[1760649798437,0.64301412,108230.0,108210.0,0.1838658]
[1760649800074,0.64301412,108230.0,108220.0,0.18480872]
[1760649800075,0.98301412,108230.0,108220.0,0.18480872]
[1760649800663,0.78896736,108230.0,108220.0,0.18480872]
[1760649800866,0.973759,108230.0,108220.0,0.18480872]
[1760649801515,0.633759,108230.0,108220.0,0.18480872]
[1760649801830,0.1932344,108230.0,108220.0,0.18480872]
[1760649802111,0.633759,108230.0,108220.0,0.18480872]
[1760649802348,0.633759,108230.0,108210.0,0.2769858]
[1760649802551,0.633759,108230.0,108220.0,0.18480872]
[1760649803368,0.1932344,108230.0,108220.0,0.18480872]
[1760649803579,0.633759,108230.0,108220.0,0.18480872]
[1760649804621,0.633759,108230.0,108210.0,0.36667592]
[1760649804865,0.633759,108230.0,108210.0,0.08973012]
[1760649805068,1.06585792,108220.0,108210.0,4e-05]
[1760649806352,1.08581926,108220.0,108210.0,4e-05]
[1760649806539,0.4405246,108210.0,108200.0,0.18487717]
[1760649808593,0.6253504,108210.0,108200.0,0.18488288]
[1760649808815,0.64531405,108210.0,108200.0,4e-05]
[1760649809256,0.64531405,108210.0,108200.0,0.18488288]
[1760649810369,0.64531405,108210.0,108200.0,4e-05]
[1760649811195,0.64531405,108210.0,108200.0,0.18488288]
[1760649811404,0.20478945,108210.0,108200.0,0.18488288]
[1760649811604,0.64531405,108210.0,108200.0,0.18488288]
[1760649815129,0.64531405,108210.0,108200.0,4e-05]
[1760649815684,0.64531405,108210.0,108200.0,0.18488288]
[1760649816669,0.59358462,108210.0,108200.0,0.18488288]
[1760649820920,0.86933332,108220.0,108200.0,0.18488288]
[1760649820921,0.42880872,108220.0,108200.0,0.18488288]
[1760649821166,0.4405246,108210.0,108200.0,0.18488288]
[1760649821383,0.6253504,108210.0,108200.0,0.18488288]
[1760649823492,0.1848258,108210.0,108200.0,0.18488288]
[1760649823742,0.62533282,108210.0,108200.0,4e-05]
[1760649823965,1.62139432,108210.0,108200.0,4e-05]
[1760649824177,1.64919162,108210.0,108200.0,4e-05]
[1760649824395,0.1848697,108190.0,108170.0,0.19417691]
[1760649824608,0.62537672,108190.0,108170.0,0.19417691]
[1760649825280,0.18487705,108180.0,108170.0,0.19417691]
[1760649825698,0.18487705,108180.0,108170.0,0.19467816]
[1760649826740,0.18487705,108180.0,108170.0,0.00054125]
[1760649826955,0.18487705,108180.0,108170.0,0.18543539]
[1760649827380,0.19345478,108190.0,108170.0,0.18543539]
[1760649827610,0.5527317,108200.0,108190.0,0.18485996]
[1760649827611,0.244,108200.0,108190.0,0.18485996]
[1760649827826,0.42884288,108200.0,108190.0,0.18485996]
[1760649828684,0.244,108200.0,108190.0,0.18485996]
[1760649828941,0.25226289,108200.0,108190.0,0.18485996]
[1760649829575,0.43710577,108200.0,108190.0,0.18485996]
[1760649832659,0.25226289,108200.0,108190.0,0.18485996]
[1760649833009,0.244,108200.0,108190.0,0.18485996]
[1760649834315,0.42884288,108200.0,108190.0,0.18485996]
[1760649834522,0.244,108200.0,108190.0,0.18485996]
[1760649836810,0.42884288,108200.0,108190.0,0.18485996]
[1760649837444,0.244,108200.0,108190.0,0.18485996]
[1760649840712,0.42884288,108200.0,108190.0,0.18485996]
[1760649841788,0.244,108200.0,108190.0,0.18485996]
[1760649845982,0.21998993,108210.0,108200.0,0.18484288]
[1760649847065,0.20004041,108210.0,108200.0,0.18484288]
[1760649850349,0.20003863,108210.0,108200.0,0.18484288]
[1760649855411,0.21998815,108210.0,108200.0,0.18484288]
[1760649860696,0.03516235,108210.0,108200.0,0.18484288]
[1760649862131,0.03516235,108210.0,108200.0,0.18603963]
[1760649863844,0.01994952,108210.0,108200.0,0.18603963]
[1760649864238,0.58292277,108230.0,108220.0,0.18480872]
[1760649864442,1.04341033,108230.0,108220.0,0.18480872]
[1760649864665,1.01021338,108230.0,108220.0,0.18480872]
[1760649865293,0.98528031,108230.0,108220.0,0.18480872]
[1760649865495,1.00051119,108230.0,108220.0,0.18480872]
[1760649865692,0.81571844,108230.0,108220.0,0.18480872]
[1760649865923,1.00051008,108230.0,108220.0,0.18480872]
[1760649866674,0.56000306,108230.0,108220.0,0.18480872]
[1760649867298,0.37521142,108230.0,108220.0,0.18480872]
[1760649867542,0.03521142,108230.0,108220.0,0.18480872]
[1760649868254,0.01998054,108230.0,108220.0,0.18480872]
[1760649868944,0.20475574,108240.0,108230.0,0.18479164]
[1760649870018,0.01998054,108240.0,108230.0,0.18479164]
[1760649871318,0.5931356,108250.0,108240.0,0.18477457]
[1760649871533,0.5931356,108250.0,108230.0,0.18479164]
[1760649872376,0.5931356,108250.0,108240.0,0.18477457]
[1760649873047,0.5931356,108250.0,108230.0,0.18479164]
[1760649873714,0.58830762,108250.0,108230.0,0.18479164]
[1760649875049,0.18477457,108240.0,108230.0,0.18479164]
[1760649876586,0.58830762,108250.0,108230.0,0.18479164]
[1760649876770,0.58830762,108250.0,108240.0,0.18477457]
[1760649876985,0.58830762,108250.0,108230.0,0.18479164]
[1760649877195,0.24830762,108250.0,108240.0,0.20325202]
[1760649877421,0.24830762,108250.0,108240.0,0.18477457]
[1760649877630,0.02822308,108250.0,108240.0,0.18477457]
[1760649877888,0.21298058,108250.0,108240.0,0.27785457]
[1760649878953,0.64095698,108260.0,108240.0,0.27785457]
[1760649879188,0.1847575,108250.0,108240.0,0.27785457]
[1760649879635,0.1847575,108250.0,108240.0,0.18477457]
[1760649879848,0.01539269,108250.0,108240.0,0.27785457]
[1760649880308,0.1847575,108250.0,108240.0,0.27785457]
[1760649880580,0.20044996,108260.0,108240.0,0.27785457]
[1760649880801,0.1847575,108250.0,108240.0,0.27785457]
[1760649882102,0.1847575,108250.0,108230.0,0.36756125]
[1760649882317,0.1847575,108250.0,108230.0,0.27448125]
[1760649882527,0.1847575,108250.0,108230.0,0.36756125]
[1760649883431,0.62492559,108250.0,108230.0,0.80772934]
[1760649883863,0.1847575,108250.0,108240.0,0.18477457]
[1760649883999,0.62492559,108250.0,108240.0,0.18477457]
[1760649884219,0.1847575,108250.0,108240.0,0.18477457]
[1760649884432,0.62492559,108250.0,108240.0,0.18477457]
[1760649887285,0.18479164,108230.0,108210.0,0.78016809]
[1760649887500,0.62497681,108220.0,108210.0,0.18497613]
[1760649887706,0.18480872,108220.0,108210.0,0.18497613]
[1760649888781,0.64488078,108230.0,108210.0,0.18497613]
[1760649889414,0.18480872,108220.0,108210.0,0.18497613]
[1760649890075,0.64488078,108230.0,108210.0,0.18497613]
[1760649890285,0.18480872,108220.0,108210.0,0.18497613]
[1760649890695,0.64488078,108230.0,108210.0,0.18497613]
[1760649892156,0.64488078,108230.0,108220.0,0.18480872]
[1760649894960,0.64488078,108230.0,108210.0,0.18497613]